[Event "*** Titled Tuesday Blitz"]
[Site "Chess.com"]
[Date "2021.02.02"]
[Round "4"]
[White "sorrm8thatscheckm8"]
[Black "Coiote53"]
[Result "1/2-1/2"]
[WhiteElo "2558"]
[BlackElo "2351"]
[TimeControl "180+1"]
[EndTime "10:45:26 PST"]
[Termination "Game drawn by repetition"]

1. d4 {[%clk 0:03:00.9]} 1... Nf6 {[%clk 0:03:00.2]} 2. c4 {[%clk 0:03:01.3]}
2... g6 {[%clk 0:03:00.3]} 3. Nc3 {[%clk 0:03:01.3]} 3... d5 {[%clk 0:03:00.2]}
4. cxd5 {[%clk 0:03:02.2]} 4... Nxd5 {[%clk 0:03:01.1]} 5. e4 {[%clk 0:03:02.9]}
5... Nxc3 {[%clk 0:03:01.4]} 6. bxc3 {[%clk 0:03:03.8]} 6... Bg7 {[%clk
0:03:02.3]} 7. Bc4 {[%clk 0:03:04.1]} 7... c5 {[%clk 0:03:03.2]} 8. Ne2 {[%clk
0:03:04.3]} 8... Nc6 {[%clk 0:03:01.7]} 9. Be3 {[%clk 0:03:04.7]} 9... O-O
{[%clk 0:03:01.9]} 10. O-O {[%clk 0:03:04.3]} 10... Bg4 {[%clk 0:03:02.5]} 11.
f3 {[%clk 0:03:04.5]} 11... Bd7 {[%clk 0:03:02.5]} 12. Qd2 {[%clk 0:03:04.2]}
12... Rc8 {[%clk 0:02:59.6]} 13. Rfd1 {[%clk 0:03:02.7]} 13... Qa5 {[%clk
0:02:55.2]} 14. Rac1 {[%clk 0:02:59.9]} 14... Rfd8 {[%clk 0:02:51.5]} 15. h4
{[%clk 0:02:50.6]} 15... e6 {[%clk 0:02:41.4]} 16. h5 {[%clk 0:02:49]} 16...
cxd4 {[%clk 0:02:32.5]} 17. cxd4 {[%clk 0:02:46.8]} 17... Qxd2 {[%clk
0:02:33.4]} 18. Rxd2 {[%clk 0:02:46.3]} 18... Na5 {[%clk 0:02:33.6]} 19. Bd3
{[%clk 0:02:42.5]} 19... gxh5 {[%clk 0:02:33]} 20. Rb1 {[%clk 0:02:05.5]} 20...
b6 {[%clk 0:02:27.1]} 21. Ba6 {[%clk 0:01:59.5]} 21... Rc6 {[%clk 0:02:14.7]}
22. d5 {[%clk 0:01:55.7]} 22... Rd6 {[%clk 0:02:04.6]} 23. Bf4 {[%clk
0:01:51.4]} 23... e5 {[%clk 0:01:47.3]} 24. Bg5 {[%clk 0:01:50.2]} 24... f6
{[%clk 0:01:46.7]} 25. Be3 {[%clk 0:01:49.3]} 25... Bc8 {[%clk 0:01:42.2]} 26.
Bd3 {[%clk 0:01:35.3]} 26... f5 {[%clk 0:01:33.4]} 27. Rc1 {[%clk 0:01:31.4]}
27... fxe4 {[%clk 0:01:24.6]} 28. Bxe4 {[%clk 0:01:32.3]} 28... Bd7 {[%clk
0:01:21.1]} 29. Rdc2 {[%clk 0:01:29.8]} 29... Nb7 {[%clk 0:01:17.9]} 30. Rc7
{[%clk 0:01:27.1]} 30... Nc5 {[%clk 0:01:18]} 31. Bxc5 {[%clk 0:01:22.1]} 31...
bxc5 {[%clk 0:01:18.9]} 32. R1xc5 {[%clk 0:01:22.9]} 32... Bh6 {[%clk
0:01:19.4]} 33. Kf2 {[%clk 0:01:19.3]} 33... Ra6 {[%clk 0:01:19.1]} 34. Rc2
{[%clk 0:01:19.2]} 34... Ra3 {[%clk 0:01:12.2]} 35. Nc3 {[%clk 0:01:05.4]} 35...
h4 {[%clk 0:01:06.9]} 36. d6 {[%clk 0:01:01.3]} 36... Bf8 {[%clk 0:01:02.5]} 37.
Nd5 {[%clk 0:00:57.8]} 37... Kf7 {[%clk 0:01:02.5]} 38. Bf5 {[%clk 0:00:55.2]}
38... Bxd6 {[%clk 0:01:02.7]} 39. Rxd7+ {[%clk 0:00:49]} 39... Rxd7 {[%clk
0:01:03.2]} 40. Bxd7 {[%clk 0:00:49.9]} 40... Ra5 {[%clk 0:00:58.4]} 41. Ne3
{[%clk 0:00:48.6]} 41... Kf6 {[%clk 0:00:59]} 42. Bc6 {[%clk 0:00:47.3]} 42...
Bc5 {[%clk 0:00:54.9]} 43. Ke2 {[%clk 0:00:43.5]} 43... Bd4 {[%clk 0:00:53.8]}
44. Be4 {[%clk 0:00:37.4]} 44... Ra3 {[%clk 0:00:47.6]} 45. Nd1 {[%clk 0:00:36]}
45... Kg5 {[%clk 0:00:45.1]} 46. Nf2 {[%clk 0:00:35.4]} 46... Kf4 {[%clk
0:00:42]} 47. Nd3+ {[%clk 0:00:31.2]} 47... Kg3 {[%clk 0:00:42.3]} 48. Bd5
{[%clk 0:00:25.8]} 48... Kxg2 {[%clk 0:00:40.3]} 49. f4+ {[%clk 0:00:26.1]}
49... e4 {[%clk 0:00:26.5]} 50. Bxe4+ {[%clk 0:00:25.5]} 50... Kg3 {[%clk
0:00:27.2]} 51. Bxh7 {[%clk 0:00:21.1]} 51... h3 {[%clk 0:00:27.2]} 52. Be4
{[%clk 0:00:21.2]} 52... h2 {[%clk 0:00:20.6]} 53. f5 {[%clk 0:00:19.7]} 53...
Ra5 {[%clk 0:00:16]} 54. Ke1 {[%clk 0:00:11.4]} 54... Rxf5 {[%clk 0:00:14.5]}
55. Rxh2 {[%clk 0:00:09.5]} 55... Rb5 {[%clk 0:00:12.8]} 56. Rg2+ {[%clk
0:00:09.5]} 56... Kh4 {[%clk 0:00:13.4]} 57. Rg8 {[%clk 0:00:09.1]} 57... Rb1+
{[%clk 0:00:09.7]} 58. Ke2 {[%clk 0:00:09.5]} 58... Ra1 {[%clk 0:00:10.3]} 59.
Kf3 {[%clk 0:00:09.3]} 59... Rxa2 {[%clk 0:00:08.7]} 60. Rd8 {[%clk 0:00:08.7]}
60... Bc3 {[%clk 0:00:06.9]} 61. Rd7 {[%clk 0:00:09]} 61... Kg5 {[%clk
0:00:04.8]} 62. Nf4 {[%clk 0:00:09.1]} 62... Ra3 {[%clk 0:00:04.1]} 63. Nd5
{[%clk 0:00:08.8]} 63... Ba5+ {[%clk 0:00:03.4]} 64. Ke2 {[%clk 0:00:07.7]}
64... Bb6 {[%clk 0:00:03.8]} 65. Rg7+ {[%clk 0:00:06.7]} 65... Kh6 {[%clk
0:00:03.5]} 66. Rb7 {[%clk 0:00:05.9]} 66... Bc5 {[%clk 0:00:02.7]} 67. Rc7
{[%clk 0:00:05.6]} 67... Bb6 {[%clk 0:00:02]} 68. Rc6+ {[%clk 0:00:06]} 68...
Kg5 {[%clk 0:00:02.2]} 69. Nxb6 {[%clk 0:00:06.7]} 69... axb6 {[%clk 0:00:03.1]}
70. Rxb6 {[%clk 0:00:07.6]} 70... Kf4 {[%clk 0:00:03.9]} 71. Bd3 {[%clk
0:00:07.7]} 71... Ke5 {[%clk 0:00:04.1]} 72. Rb4 {[%clk 0:00:07.5]} 72... Kd5
{[%clk 0:00:04.2]} 73. Ke3 {[%clk 0:00:08]} 73... Kc5 {[%clk 0:00:04.7]} 74. Rg4
{[%clk 0:00:08.6]} 74... Kd6 {[%clk 0:00:05.2]} 75. Rg5 {[%clk 0:00:08.8]} 75...
Ra1 {[%clk 0:00:05.8]} 76. Kd4 {[%clk 0:00:08.7]} 76... Ke6 {[%clk 0:00:06.4]}
77. Bc4+ {[%clk 0:00:08.6]} 77... Kd6 {[%clk 0:00:07.1]} 78. Rg6+ {[%clk
0:00:08.4]} 78... Ke7 {[%clk 0:00:07.2]} 79. Kc5 {[%clk 0:00:05.1]} 79... Re1
{[%clk 0:00:07.5]} 80. Rb6 {[%clk 0:00:03.9]} 80... Rg1 {[%clk 0:00:06.7]} 81.
Bd5 {[%clk 0:00:03.6]} 81... Rc1+ {[%clk 0:00:05.9]} 82. Kd4 {[%clk 0:00:04.3]}
82... Rd1+ {[%clk 0:00:05.8]} 83. Ke5 {[%clk 0:00:04.7]} 83... Re1+ {[%clk
0:00:06.4]} 84. Be4 {[%clk 0:00:05.1]} 84... Re2 {[%clk 0:00:06.9]} 85. Rb7+
{[%clk 0:00:05.1]} 85... Ke8 {[%clk 0:00:06.6]} 86. Kf5 {[%clk 0:00:05.5]} 86...
Kd8 {[%clk 0:00:07]} 87. Bd5 {[%clk 0:00:04.7]} 87... Rd2 {[%clk 0:00:06.9]} 88.
Ke6 {[%clk 0:00:04.5]} 88... Kc8 {[%clk 0:00:06]} 89. Rh7 {[%clk 0:00:04]} 89...
Kb8 {[%clk 0:00:04.7]} 90. Kd6 {[%clk 0:00:04.6]} 90... Rc2 {[%clk 0:00:04.3]}
91. Rg7 {[%clk 0:00:02.5]} 91... Rc1 {[%clk 0:00:03.2]} 92. Rf7 {[%clk 0:00:03]}
92... Rc2 {[%clk 0:00:03]} 93. Bc6 {[%clk 0:00:03.2]} 93... Rc3 {[%clk 0:00:03]}
94. Re7 {[%clk 0:00:02.3]} 94... Rd3+ {[%clk 0:00:02.8]} 95. Kc5 {[%clk
0:00:02.2]} 95... Rc3+ {[%clk 0:00:03.7]} 96. Kb6 {[%clk 0:00:02.9]} 96... Rb3+
{[%clk 0:00:04.3]} 97. Bb5 {[%clk 0:00:03.3]} 97... Rc3 {[%clk 0:00:02.9]} 98.
Re8+ {[%clk 0:00:03.6]} 98... Rc8 {[%clk 0:00:03.5]} 99. Re7 {[%clk 0:00:04.5]}
99... Rc1 {[%clk 0:00:03]} 100. Rb7+ {[%clk 0:00:04.3]} 100... Kc8 {[%clk
0:00:03.6]} 101. Re7 {[%clk 0:00:04.4]} 101... Kd8 {[%clk 0:00:04]} 102. Rd7+
{[%clk 0:00:04.1]} 102... Kc8 {[%clk 0:00:03.8]} 103. Rg7 {[%clk 0:00:04.3]}
103... Rd1 {[%clk 0:00:04.2]} 104. Ba6+ {[%clk 0:00:04.4]} 104... Kd8 {[%clk
0:00:04.8]} 105. Bb5 {[%clk 0:00:05.1]} 105... Rc1 {[%clk 0:00:04.8]} 106. Rd7+
{[%clk 0:00:05.1]} 106... Kc8 {[%clk 0:00:04.6]} 107. Ra7 {[%clk 0:00:05.7]}
107... Kb8 {[%clk 0:00:04.9]} 108. Rb7+ {[%clk 0:00:05.4]} 108... Kc8 {[%clk
0:00:04.9]} 109. Ra7 {[%clk 0:00:05.6]} 109... Kb8 {[%clk 0:00:04.6]} 110. Ra5
{[%clk 0:00:06.2]} 110... Kc8 {[%clk 0:00:04.2]} 111. Ra7 {[%clk 0:00:04.9]}
1/2-1/2

[Event "*** Titled Tuesday Blitz"]
[Site "Chess.com"]
[Date "2021.02.02"]
[Round "5"]
[White "TigrVShlyape"]
[Black "kakakz"]
[Result "1-0"]
[WhiteElo "2837"]
[BlackElo "2464"]
[TimeControl "180+1"]
[EndTime "10:53:27 PST"]
[Termination "TigrVShlyape won by resignation"]

1. e4 {[%clk 0:03:00.9]} 1... e6 {[%clk 0:02:58]} 2. d3 {[%clk 0:02:59.5]} 2...
d5 {[%clk 0:02:56.3]} 3. Nd2 {[%clk 0:02:59.9]} 3... Nc6 {[%clk 0:02:55.6]} 4.
Ngf3 {[%clk 0:02:56.6]} 4... Nf6 {[%clk 0:02:55.4]} 5. g3 {[%clk 0:02:54.8]}
5... e5 {[%clk 0:02:54.6]} 6. Bg2 {[%clk 0:02:54.4]} 6... Be7 {[%clk 0:02:54.6]}
7. O-O {[%clk 0:02:53.4]} 7... O-O {[%clk 0:02:54.6]} 8. exd5 {[%clk 0:02:49]}
8... Nxd5 {[%clk 0:02:54]} 9. Re1 {[%clk 0:02:48.9]} 9... f6 {[%clk 0:02:51.1]}
10. c3 {[%clk 0:02:47.3]} 10... Bg4 {[%clk 0:02:37.5]} 11. Qb3 {[%clk
0:02:45.1]} 11... Na5 {[%clk 0:02:36.1]} 12. Qa4 {[%clk 0:02:44.3]} 12... Nc6
{[%clk 0:02:07.9]} 13. Qxg4 {[%clk 0:02:43.2]} 1-0

[Event "*** Titled Tuesday Blitz"]
[Site "Chess.com"]
[Date "2021.02.02"]
[Round "5"]
[White "WPWPWP-2015"]
[Black "joejan"]
[Result "1-0"]
[WhiteElo "2477"]
[BlackElo "2238"]
[TimeControl "180+1"]
[EndTime "10:54:47 PST"]
[Termination "WPWPWP-2015 won by resignation"]

1. d4 {[%clk 0:02:49.3]} 1... Nf6 {[%clk 0:02:58.7]} 2. c4 {[%clk 0:02:37.3]}
2... e6 {[%clk 0:02:58.3]} 3. Nc3 {[%clk 0:02:35.7]} 3... Bb4 {[%clk 0:02:57.9]}
4. f3 {[%clk 0:02:35.7]} 4... d5 {[%clk 0:02:56.8]} 5. cxd5 {[%clk 0:02:34.9]}
5... exd5 {[%clk 0:02:56.2]} 6. a3 {[%clk 0:02:32.3]} 6... Bxc3+ {[%clk
0:02:55.2]} 7. bxc3 {[%clk 0:02:31.9]} 7... Bf5 {[%clk 0:02:53.9]} 8. Bg5 {[%clk
0:02:26.9]} 8... Nbd7 {[%clk 0:02:51.2]} 9. e3 {[%clk 0:02:24.8]} 9... h6 {[%clk
0:02:51.1]} 10. Bh4 {[%clk 0:02:24.2]} 10... O-O {[%clk 0:02:49.8]} 11. Qd2
{[%clk 0:02:22.3]} 11... c5 {[%clk 0:02:48.3]} 12. Bb5 {[%clk 0:02:15.8]} 12...
Qa5 {[%clk 0:02:44.5]} 13. Bxd7 {[%clk 0:02:03.7]} 13... Nxd7 {[%clk 0:02:43.2]}
14. Ne2 {[%clk 0:02:03]} 14... cxd4 {[%clk 0:02:38.1]} 15. cxd4 {[%clk
0:02:01.6]} 15... Qxd2+ {[%clk 0:02:30.2]} 16. Kxd2 {[%clk 0:02:01.3]} 16...
Rac8 {[%clk 0:02:29.4]} 17. Rhc1 {[%clk 0:01:59.5]} 17... Nb6 {[%clk 0:02:28.9]}
18. Nc3 {[%clk 0:01:52.1]} 18... Rfe8 {[%clk 0:02:22.4]} 19. Bf2 {[%clk
0:01:50.5]} 19... f6 {[%clk 0:02:14]} 20. Ke2 {[%clk 0:01:49.1]} 20... Kf7
{[%clk 0:02:12.3]} 21. Nb5 {[%clk 0:01:46.7]} 21... Rxc1 {[%clk 0:02:08.1]} 22.
Rxc1 {[%clk 0:01:43.6]} 22... Rc8 {[%clk 0:02:08]} 23. Nd6+ {[%clk 0:01:42.7]}
1-0

[Event "*** Titled Tuesday Blitz"]
[Site "Chess.com"]
[Date "2021.02.02"]
[Round "5"]
[White "Sjakkerntobi"]
[Black "petrkostenko"]
[Result "0-1"]
[WhiteElo "2317"]
[BlackElo "2467"]
[TimeControl "180+1"]
[EndTime "10:55:19 PST"]
[Termination "petrkostenko won by resignation"]

1. d4 {[%clk 0:03:00.9]} 1... e6 {[%clk 0:02:54.4]} 2. c4 {[%clk 0:03:00.1]}
2... b6 {[%clk 0:02:54.7]} 3. Nc3 {[%clk 0:02:58.6]} 3... Bb7 {[%clk 0:02:54.8]}
4. Nf3 {[%clk 0:02:55.2]} 4... Nf6 {[%clk 0:02:53]} 5. g3 {[%clk 0:02:54.9]}
5... Bb4 {[%clk 0:02:51.5]} 6. Bg2 {[%clk 0:02:54.7]} 6... Bxc3+ {[%clk
0:02:51.4]} 7. bxc3 {[%clk 0:02:54.4]} 7... Nc6 {[%clk 0:02:52]} 8. O-O {[%clk
0:02:54.3]} 8... Na5 {[%clk 0:02:51.8]} 9. Nd2 {[%clk 0:02:47]} 9... Bxg2 {[%clk
0:02:44.2]} 10. Kxg2 {[%clk 0:02:47.9]} 10... d6 {[%clk 0:02:41.8]} 11. e4
{[%clk 0:02:36.4]} 11... O-O {[%clk 0:02:41.3]} 12. Qe2 {[%clk 0:02:35.5]} 12...
e5 {[%clk 0:02:41]} 13. Nb3 {[%clk 0:02:31.6]} 13... Nc6 {[%clk 0:02:31.5]} 14.
a4 {[%clk 0:02:00.3]} 14... Re8 {[%clk 0:02:20.5]} 15. f3 {[%clk 0:01:59.9]}
15... a5 {[%clk 0:02:10.4]} 16. Qf2 {[%clk 0:01:53.7]} 16... Qe7 {[%clk
0:02:08.8]} 17. c5 {[%clk 0:01:47.8]} 17... bxc5 {[%clk 0:02:08.3]} 18. dxc5
{[%clk 0:01:47.6]} 18... d5 {[%clk 0:02:08]} 19. Bg5 {[%clk 0:01:41.4]} 19...
dxe4 {[%clk 0:02:07.8]} 20. Bxf6 {[%clk 0:01:41.2]} 20... Qxf6 {[%clk
0:02:06.5]} 21. fxe4 {[%clk 0:01:40.9]} 21... Qxf2+ {[%clk 0:02:05.5]} 22. Rxf2
{[%clk 0:01:36.9]} 22... Red8 {[%clk 0:02:05.6]} 23. Raf1 {[%clk 0:01:33.7]}
23... f6 {[%clk 0:02:04.9]} 24. Kf3 {[%clk 0:01:32.7]} 24... Rd3+ {[%clk
0:02:03.7]} 25. Ke2 {[%clk 0:01:30.9]} 25... Rxc3 {[%clk 0:02:03.8]} 26. Rf3
{[%clk 0:01:27.8]} 26... Rxb3 {[%clk 0:02:03.1]} 27. R3f2 {[%clk 0:01:26.9]}
27... Nd4+ {[%clk 0:02:02.6]} 0-1

[Event "*** Titled Tuesday Blitz"]
[Site "Chess.com"]
[Date "2021.02.02"]
[Round "5"]
[White "YIYUKI"]
[Black "Ave_Mariia"]
[Result "0-1"]
[WhiteElo "2251"]
[BlackElo "2480"]
[TimeControl "180+1"]
[EndTime "10:55:32 PST"]
[Termination "Ave_Mariia won by resignation"]

1. d4 {[%clk 0:03:00.9]} 1... Nf6 {[%clk 0:02:58.4]} 2. c4 {[%clk 0:03:00.2]}
2... e6 {[%clk 0:02:58.8]} 3. Nc3 {[%clk 0:02:59.2]} 3... Bb4 {[%clk 0:02:58.6]}
4. e3 {[%clk 0:02:59.3]} 4... O-O {[%clk 0:02:57]} 5. Bd3 {[%clk 0:02:58.8]}
5... c5 {[%clk 0:02:53.8]} 6. Ne2 {[%clk 0:02:57.8]} 6... b6 {[%clk 0:02:51.1]}
7. O-O {[%clk 0:02:56.9]} 7... Bb7 {[%clk 0:02:51]} 8. a3 {[%clk 0:02:57.3]}
8... Bxc3 {[%clk 0:02:50.8]} 9. Nxc3 {[%clk 0:02:57.2]} 9... d5 {[%clk
0:02:45.9]} 10. dxc5 {[%clk 0:02:54.2]} 10... bxc5 {[%clk 0:02:43.2]} 11. cxd5
{[%clk 0:02:53.6]} 11... exd5 {[%clk 0:02:44.1]} 12. b4 {[%clk 0:02:50.9]} 12...
Nbd7 {[%clk 0:02:18.9]} 13. Bb2 {[%clk 0:02:42.3]} 13... cxb4 {[%clk 0:02:06.8]}
14. axb4 {[%clk 0:02:40.7]} 14... Ne5 {[%clk 0:02:06.4]} 15. Nb5 {[%clk
0:02:30.3]} 15... Nxd3 {[%clk 0:02:02]} 16. Qxd3 {[%clk 0:02:29.6]} 16... a6
{[%clk 0:01:53.2]} 17. Nd4 {[%clk 0:02:28.6]} 17... Qb6 {[%clk 0:01:47.9]} 18.
Nf5 {[%clk 0:02:26.4]} 18... Rfe8 {[%clk 0:01:22.1]} 19. Bd4 {[%clk 0:02:23.7]}
19... Qe6 {[%clk 0:01:21.4]} 20. Rac1 {[%clk 0:02:14.4]} 20... Bc6 {[%clk
0:01:20.2]} 21. Rfd1 {[%clk 0:01:54]} 21... Bb5 {[%clk 0:01:20.1]} 22. Qc3
{[%clk 0:01:46.7]} 22... Qxf5 {[%clk 0:01:19.8]} 0-1

[Event "*** Titled Tuesday Blitz"]
[Site "Chess.com"]
[Date "2021.02.02"]
[Round "5"]
[White "GMMarcinDziuba"]
[Black "CraiggoryC"]
[Result "1-0"]
[WhiteElo "2611"]
[BlackElo "2131"]
[TimeControl "180+1"]
[EndTime "10:55:42 PST"]
[Termination "GMMarcinDziuba won by resignation"]

1. d4 {[%clk 0:03:00.9]} 1... Nf6 {[%clk 0:02:52.2]} 2. Bg5 {[%clk 0:02:58.9]}
2... d5 {[%clk 0:02:47.3]} 3. Bxf6 {[%clk 0:02:57.6]} 3... exf6 {[%clk
0:02:48.2]} 4. e3 {[%clk 0:02:57.1]} 4... Bd6 {[%clk 0:02:47.7]} 5. c4 {[%clk
0:02:53]} 5... dxc4 {[%clk 0:02:44.1]} 6. Bxc4 {[%clk 0:02:52.3]} 6... O-O
{[%clk 0:02:41.4]} 7. Nc3 {[%clk 0:02:52.2]} 7... c6 {[%clk 0:02:40.5]} 8. Nf3
{[%clk 0:02:48.1]} 8... Nd7 {[%clk 0:02:35.9]} 9. O-O {[%clk 0:02:48]} 9... f5
{[%clk 0:02:36.2]} 10. a3 {[%clk 0:02:44.8]} 10... a5 {[%clk 0:02:34.3]} 11. Qc2
{[%clk 0:02:39.5]} 11... Nf6 {[%clk 0:02:33.5]} 12. Ne5 {[%clk 0:02:32.2]} 12...
Qe7 {[%clk 0:02:22.2]} 13. f4 {[%clk 0:02:31.3]} 13... Be6 {[%clk 0:02:19.9]}
14. Bd3 {[%clk 0:02:25.5]} 14... g6 {[%clk 0:02:18.3]} 15. Rae1 {[%clk
0:02:23.5]} 15... c5 {[%clk 0:02:03.2]} 16. Nb5 {[%clk 0:02:20.7]} 16... cxd4
{[%clk 0:01:58.3]} 17. exd4 {[%clk 0:02:18]} 17... Rfc8 {[%clk 0:01:46.1]} 18.
Qd2 {[%clk 0:02:17.1]} 18... Nd5 {[%clk 0:01:35.7]} 19. Nc4 {[%clk 0:01:58.3]}
19... Bxf4 {[%clk 0:01:20.4]} 20. Rxf4 {[%clk 0:01:53.7]} 20... Nxf4 {[%clk
0:01:20.5]} 21. Qxf4 {[%clk 0:01:52.9]} 21... Qd7 {[%clk 0:00:59]} 22. Nb6
{[%clk 0:01:51.2]} 1-0

[Event "*** Titled Tuesday Blitz"]
[Site "Chess.com"]
[Date "2021.02.02"]
[Round "5"]
[White "The_filthy"]
[Black "ljuks68"]
[Result "0-1"]
[WhiteElo "2222"]
[BlackElo "2377"]
[TimeControl "180+1"]
[EndTime "10:55:43 PST"]
[Termination "ljuks68 won by resignation"]

1. e4 {[%clk 0:03:00.9]} 1... e6 {[%clk 0:02:59.6]} 2. d4 {[%clk 0:03:00.4]}
2... d5 {[%clk 0:03:00]} 3. Nc3 {[%clk 0:02:58.3]} 3... Bb4 {[%clk 0:02:59.3]}
4. e5 {[%clk 0:02:55.9]} 4... Ne7 {[%clk 0:02:59.7]} 5. Nf3 {[%clk 0:02:54.8]}
5... c5 {[%clk 0:02:59.1]} 6. a3 {[%clk 0:02:48]} 6... Bxc3+ {[%clk 0:02:59.1]}
7. bxc3 {[%clk 0:02:48.9]} 7... Bd7 {[%clk 0:02:58.9]} 8. dxc5 {[%clk
0:02:44.4]} 8... Nbc6 {[%clk 0:02:55.9]} 9. Bd3 {[%clk 0:02:43.9]} 9... Ng6
{[%clk 0:02:52]} 10. Qe2 {[%clk 0:02:34.7]} 10... Qc7 {[%clk 0:02:36.9]} 11.
Bxg6 {[%clk 0:02:31.6]} 11... fxg6 {[%clk 0:02:36.9]} 12. Bf4 {[%clk 0:02:31.7]}
12... O-O {[%clk 0:02:36.3]} 13. Bg3 {[%clk 0:02:29.8]} 13... Qa5 {[%clk
0:02:33.3]} 14. O-O {[%clk 0:02:24.2]} 14... Qxc3 {[%clk 0:02:15.1]} 15. h4
{[%clk 0:02:17.2]} 15... Qxc5 {[%clk 0:02:12.1]} 16. h5 {[%clk 0:02:15.7]} 16...
gxh5 {[%clk 0:02:11.5]} 17. Ng5 {[%clk 0:02:15.8]} 17... h6 {[%clk 0:02:01.5]}
18. Nh3 {[%clk 0:02:10.3]} 18... Be8 {[%clk 0:01:58.3]} 19. Nf4 {[%clk
0:02:06.6]} 19... h4 {[%clk 0:01:47.9]} 20. Bh2 {[%clk 0:02:01.6]} 20... Qe7
{[%clk 0:01:44.2]} 21. Rab1 {[%clk 0:01:58.3]} 21... b6 {[%clk 0:01:40.3]} 22.
Rfe1 {[%clk 0:01:49.7]} 22... g5 {[%clk 0:01:38.3]} 23. Nh5 {[%clk 0:01:44]}
23... Bxh5 {[%clk 0:01:38]} 24. Qxh5 {[%clk 0:01:42.4]} 24... Kg7 {[%clk
0:01:36.3]} 25. f4 {[%clk 0:01:40.7]} 25... Qf7 {[%clk 0:01:36.2]} 26. Qg4
{[%clk 0:01:37.8]} 26... Qf5 {[%clk 0:01:34.8]} 27. Qe2 {[%clk 0:01:32.4]} 27...
g4 {[%clk 0:01:30.3]} 0-1

[Event "*** Titled Tuesday Blitz"]
[Site "Chess.com"]
[Date "2021.02.02"]
[Round "5"]
[White "dianamirza"]
[Black "FearNoEvil12"]
[Result "0-1"]
[WhiteElo "1916"]
[BlackElo "2198"]
[TimeControl "180+1"]
[EndTime "10:56:09 PST"]
[Termination "FearNoEvil12 won by resignation"]

1. e4 {[%clk 0:02:51.3]} 1... a6 {[%clk 0:02:58.7]} 2. d4 {[%clk 0:02:45.4]}
2... b5 {[%clk 0:02:57.6]} 3. Nf3 {[%clk 0:02:43.1]} 3... Bb7 {[%clk 0:02:58]}
4. Bd3 {[%clk 0:02:39.7]} 4... e6 {[%clk 0:02:58.5]} 5. O-O {[%clk 0:02:35.6]}
5... Nf6 {[%clk 0:02:58.8]} 6. Re1 {[%clk 0:02:27.7]} 6... d6 {[%clk 0:02:59.1]}
7. c3 {[%clk 0:02:26.4]} 7... Nbd7 {[%clk 0:02:58.7]} 8. Bg5 {[%clk 0:02:24]}
8... h6 {[%clk 0:02:59]} 9. Bh4 {[%clk 0:02:12.1]} 9... g5 {[%clk 0:02:58.8]}
10. Bg3 {[%clk 0:02:07.9]} 10... Rg8 {[%clk 0:02:59.2]} 11. h3 {[%clk
0:02:06.5]} 11... h5 {[%clk 0:02:58.8]} 12. e5 {[%clk 0:01:58.1]} 12... Nd5
{[%clk 0:02:57.2]} 13. Nbd2 {[%clk 0:01:42.9]} 13... g4 {[%clk 0:02:56]} 14.
hxg4 {[%clk 0:01:40.4]} 14... hxg4 {[%clk 0:02:56.2]} 15. Nh2 {[%clk 0:01:37.9]}
15... dxe5 {[%clk 0:02:40.5]} 16. Bxe5 {[%clk 0:01:23.2]} 16... Nxe5 {[%clk
0:02:39.1]} 17. Rxe5 {[%clk 0:01:21.9]} 17... Bd6 {[%clk 0:02:35.6]} 18. Rh5
{[%clk 0:01:11.2]} 18... Nf4 {[%clk 0:02:23]} 19. Bh7 {[%clk 0:00:51.1]} 19...
Rh8 {[%clk 0:02:00.5]} 20. Rh4 {[%clk 0:00:38.9]} 20... Qxh4 {[%clk 0:01:57.9]}
0-1

[Event "*** Titled Tuesday Blitz"]
[Site "Chess.com"]
[Date "2021.02.02"]
[Round "5"]
[White "canary2016"]
[Black "isla88"]
[Result "0-1"]
[WhiteElo "2021"]
[BlackElo "2309"]
[TimeControl "180+1"]
[EndTime "10:56:26 PST"]
[Termination "isla88 won by checkmate"]

1. d4 {[%clk 0:03:00.9]} 1... d6 {[%clk 0:02:58.5]} 2. c4 {[%clk 0:02:58.9]}
2... Nf6 {[%clk 0:02:57.9]} 3. Nf3 {[%clk 0:02:56.4]} 3... g6 {[%clk 0:02:54.3]}
4. g3 {[%clk 0:02:54.3]} 4... Bg7 {[%clk 0:02:54.6]} 5. Bg2 {[%clk 0:02:54.2]}
5... Bf5 {[%clk 0:02:54.8]} 6. O-O {[%clk 0:02:53.7]} 6... Ne4 {[%clk
0:02:54.7]} 7. Nc3 {[%clk 0:02:53.6]} 7... Nxc3 {[%clk 0:02:54.4]} 8. bxc3
{[%clk 0:02:53.8]} 8... Be4 {[%clk 0:02:54.9]} 9. Bb2 {[%clk 0:02:51.3]} 9...
O-O {[%clk 0:02:53.3]} 10. e3 {[%clk 0:02:48.8]} 10... c5 {[%clk 0:02:48.8]} 11.
Qe2 {[%clk 0:02:38]} 11... Nc6 {[%clk 0:02:44.1]} 12. Rfd1 {[%clk 0:02:27.4]}
12... Qa5 {[%clk 0:02:40.7]} 13. Nd2 {[%clk 0:02:03.1]} 13... Bxg2 {[%clk
0:02:40.1]} 14. Kxg2 {[%clk 0:02:03.1]} 14... Qa4 {[%clk 0:02:40.3]} 15. Nb3
{[%clk 0:02:01.4]} 15... b6 {[%clk 0:02:34.3]} 16. e4 {[%clk 0:01:46]} 16...
Rfc8 {[%clk 0:02:30.8]} 17. f4 {[%clk 0:01:35]} 17... Na5 {[%clk 0:02:19.7]} 18.
Nxa5 {[%clk 0:01:30]} 18... Qxa5 {[%clk 0:02:20.6]} 19. e5 {[%clk 0:00:48.5]}
19... Qa4 {[%clk 0:02:19.5]} 20. exd6 {[%clk 0:00:47.6]} 20... exd6 {[%clk
0:02:17.7]} 21. Qe7 {[%clk 0:00:43.1]} 21... Qc2+ {[%clk 0:02:14.6]} 22. Kh1
{[%clk 0:00:38.4]} 22... Qxb2 {[%clk 0:02:13.2]} 23. Qxd6 {[%clk 0:00:35.9]}
23... Qxc3 {[%clk 0:02:13.1]} 24. dxc5 {[%clk 0:00:32.5]} 24... Qf3+ {[%clk
0:02:12.1]} 25. Kg1 {[%clk 0:00:32.2]} 25... Bxa1 {[%clk 0:02:12.7]} 26. Rxa1
{[%clk 0:00:30.9]} 26... Qe3+ {[%clk 0:02:11.4]} 27. Kh1 {[%clk 0:00:29.5]}
27... Qxc5 {[%clk 0:02:12.3]} 28. Qd7 {[%clk 0:00:26.7]} 28... Qc6+ {[%clk
0:02:12.3]} 29. Qxc6 {[%clk 0:00:26.6]} 29... Rxc6 {[%clk 0:02:13.2]} 30. Rd1
{[%clk 0:00:26.9]} 30... Rac8 {[%clk 0:02:13.4]} 31. Rd7 {[%clk 0:00:26]} 31...
R8c7 {[%clk 0:02:13.8]} 32. Rd8+ {[%clk 0:00:25.5]} 32... Kg7 {[%clk 0:02:14.2]}
33. Rd4 {[%clk 0:00:25.7]} 33... Rxc4 {[%clk 0:02:14.6]} 34. Rd5 {[%clk
0:00:25.8]} 34... Rc2 {[%clk 0:02:14]} 35. Re5 {[%clk 0:00:24.7]} 35... Rxa2
{[%clk 0:02:14]} 36. Re4 {[%clk 0:00:25.3]} 36... Rc1+ {[%clk 0:02:13.9]} 37.
Re1 {[%clk 0:00:25.1]} 37... Rxe1# {[%clk 0:02:14.8]} 0-1